lending/lending_fUSD_20241229
["ID","MTS","AMOUNT","RATE_DAILY","PERIOD"]
[347059640,1735487435769,-500.0,0.00011541,7]
[347059642,1735487435778,-1185.21,0.00011541,2]
[347059644,1735487435789,-500.0,0.00011541,2]
[347059646,1735487435799,-747.2,0.00011541,2]
[347059648,1735487435808,-500.0,0.00011541,2]
[347059650,1735487435818,-500.0,0.00011541,2]
[347059652,1735487435827,-568.24,0.00011541,2]
[347059654,1735487435838,-2376.49,0.00011541,2]
[347059656,1735487435849,-849.04,0.00011541,2]
[347059657,1735487435857,-500.0,0.00011541,2]
[347059659,1735487435867,-500.0,0.00011541,2]
[347059661,1735487435876,-500.0,0.00011541,2]
[347059663,1735487435886,-500.0,0.00011541,2]
[347059665,1735487435895,-500.0,0.00011541,2]
[347059667,1735487435904,-2262.05,0.00011541,2]
[347059669,1735487435914,-1326.57,0.00011541,2]
[347059671,1735487435924,-786.79,0.00011541,2]
[347059673,1735487435934,-3888.42,0.00011541,2]
[347059675,1735487435943,-987.63,0.00011541,2]
[347059677,1735487435952,-500.3,0.00011541,2]
[347059679,1735487435961,-493.06,0.00011541,2]
[347059681,1735487435971,-443.13009904,0.00011542,2]
[347059683,1735487435980,-500.0,0.00011542,2]
[347059685,1735487435989,-500.0,0.00011542,2]
[347059687,1735487435998,-500.0,0.00011542,2]
[347059689,1735487436012,-500.0,0.00011542,2]
[347059691,1735487436021,-500.0,0.00011542,2]
[347059693,1735487436030,-500.0,0.00011542,2]
[347059695,1735487436040,-154.80747412,0.00011542,2]
[347059697,1735487436048,-500.0,0.00011542,2]
[347059699,1735487436058,-546.71404462,0.00011542,2]
[347059701,1735487436068,-500.0,0.00011542,2]
[347059703,1735487436078,-500.0,0.00011542,2]
[347059705,1735487436088,-500.0,0.00011542,2]
[347059708,1735487436098,-341.07027275,0.00011542,2]
[347059710,1735487436107,-500.0,0.00011542,2]
[347059712,1735487436116,-637.11,0.00011542,2]
[347059714,1735487436125,-4216.44,0.00011542,2]
[347059716,1735487436134,-3923.77,0.00011542,2]
[347059718,1735487436144,-2804.19,0.00011542,2]
[347059720,1735487436153,-2616.93,0.00011542,2]
[347059722,1735487436162,-2004.26,0.00011542,2]
[347059723,1735487436171,-6714.63,0.00011542,2]
[347059725,1735487436180,-2660.57,0.00011542,2]
[347059728,1735487436190,-2419.39,0.00011542,2]
[347059730,1735487436199,-3945.75,0.00011542,2]
[347059733,1735487436217,-500.0,0.00011542,2]
[347059735,1735487436228,-560.34,0.00011542,2]
[347059737,1735487436238,-718.21,0.00011542,2]
[347059739,1735487436248,-707.07,0.00011542,2]
[347059741,1735487436263,-14768.93,0.00011542,2]
[347059743,1735487436272,-500.0,0.00011542,2]
[347059745,1735487436282,-500.0,0.00011542,2]
[347059747,1735487436292,-500.0,0.00011542,2]
[347059749,1735487436302,-1423.46,0.00011542,2]
[347059751,1735487436311,-10812.02,0.00011542,2]
[347059754,1735487436322,-500.0,0.00011542,2]
[347059756,1735487436332,-1054.88,0.00011542,2]
[347059758,1735487436342,-500.0,0.00011542,2]
[347059760,1735487436352,-1280.25,0.00011542,2]
[347059762,1735487436362,-307.66301561,0.00011542,2]
[347059764,1735487436372,-1792.54,0.00011542,2]
[347059766,1735487436381,-500.0,0.00011542,2]
[347059768,1735487436391,-1097.84,0.00011542,2]
[347059770,1735487436400,-3531.13,0.00011542,2]
[347059772,1735487436409,-1081.32,0.00011542,2]
[347059774,1735487436419,-500.0,0.00011542,2]
[347059776,1735487436429,-1739.48,0.00011542,2]
[347059778,1735487436439,-1099.59,0.00011542,2]
[347059780,1735487436448,-14895.79,0.00011542,2]
[347059782,1735487436457,-1437.77,0.00011542,2]
[347059784,1735487436467,-995.79,0.00011542,2]
[347059786,1735487436476,-1378.83,0.00011542,2]
[347059788,1735487436486,-6804.82,0.00011542,2]
[347059790,1735487436496,-500.0,0.00011542,2]
[347059792,1735487436507,-2042.65,0.00011542,2]
[347059794,1735487436516,-760.37,0.00011542,2]
[347059796,1735487436526,-1768.66,0.00011542,2]
[347059798,1735487436535,-1977.53,0.00011542,2]
[347059800,1735487436545,-3876.13,0.00011542,2]
[347059802,1735487436555,-980.25,0.00011542,2]
[347059804,1735487436565,-500.0,0.00011542,2]
[347059805,1735487436574,-1420.63,0.00011542,2]
[347059806,1735487436584,-2194.08,0.00011542,2]
[347059807,1735487436593,-1762.5,0.00011542,2]
[347059808,1735487436602,-1268.75,0.00011542,2]
[347059809,1735487436611,-500.0,0.00011542,2]
[347059810,1735487436620,-895.69,0.00011542,2]
[347059811,1735487436629,-1247.58,0.00011542,2]
[347059813,1735487436638,-1565.01,0.00011542,2]
[347059815,1735487436648,-916.99,0.00011542,2]
[347059817,1735487436657,-500.0,0.00011542,2]
[347059819,1735487436667,-2662.11,0.00011542,2]
[347059821,1735487436676,-1084.1,0.00011542,2]
[347059823,1735487436686,-2459.9,0.00011542,2]
[347059825,1735487436696,-2706.68,0.00011542,2]
[347059827,1735487436705,-777.69,0.00011542,2]
[347059829,1735487436715,-2245.02,0.00011542,2]
[347059831,1735487436725,-2369.92,0.00011542,2]
[347059833,1735487436735,-941.14,0.00011542,2]
[347059835,1735487436746,-2026.18,0.00011542,2]
[347059837,1735487436757,-398.98336734,0.00011543,2]
[347059839,1735487436766,-881.2,0.00011543,2]
[347059841,1735487436778,-652.25,0.00011543,2]
[347059843,1735487436788,-4215.18,0.00011543,2]
[347059845,1735487436798,-1135.45,0.00011543,2]
[347059847,1735487436807,-397.68148325,0.00011543,2]
[347059849,1735487436817,-500.0,0.00011543,2]
[347059851,1735487436827,-1013.7,0.00011543,2]
[347059853,1735487436838,-500.0,0.00011543,2]
[347059855,1735487436849,-500.0,0.00011543,2]
[347059857,1735487436859,-500.0,0.00011543,2]
[347059859,1735487436868,-500.0,0.00011543,2]
[347059861,1735487436877,-1488.28,0.00011543,2]
[347059863,1735487436887,-1488.28,0.00011543,2]
[347059865,1735487436897,-500.0,0.00011543,2]
[347059867,1735487436907,-500.0,0.00011543,2]
[347059869,1735487436916,-528.68,0.00011543,2]
[347059871,1735487436925,-500.0,0.00011543,2]
[347059873,1735487436935,-1069.4,0.00011543,2]
[347059875,1735487436944,-500.0,0.00011543,2]
[347059877,1735487436954,-500.0,0.00011543,2]
[347059879,1735487436963,-500.0,0.00011543,2]
[347059881,1735487436972,-3563.24,0.00011543,2]
[347059883,1735487436982,-500.0,0.00011543,2]
[347059885,1735487436991,-342.1186019,0.00011543,2]
[347059887,1735487437000,-500.0,0.00011543,2]
[347059889,1735487437013,-500.0,0.00011543,2]
[347059891,1735487437022,-500.0,0.00011543,2]
[347059893,1735487437031,-500.0,0.00011543,2]
[347059895,1735487437041,-700.88,0.00011543,2]
[347059897,1735487437050,-500.0,0.00011543,2]
[347059899,1735487437059,-6392.53,0.00011543,2]
[347059901,1735487437069,-500.0,0.00011543,2]
[347059903,1735487437078,-361.85026839,0.00011543,2]
[347059905,1735487437087,-500.0,0.00011543,2]
[347059907,1735487437097,-500.0,0.00011543,2]
[347059909,1735487437106,-500.0,0.00011543,2]
[347059911,1735487437115,-500.0,0.00011543,2]
[347059913,1735487437125,-500.0,0.00011543,2]
[347059915,1735487437136,-500.0,0.00011543,2]
[347059917,1735487437147,-517.81,0.00011543,2]
[347059919,1735487437157,-525.89274728,0.00011543,2]
[347059921,1735487437169,-500.0,0.00011543,2]
[347059923,1735487437181,-368.32873419,0.00011543,2]
[347059924,1735487437190,-500.0,0.00011543,2]
[347059927,1735487437199,-500.0,0.00011543,2]
[347059929,1735487437209,-500.0,0.00011543,2]
[347059931,1735487437218,-500.0,0.00011543,2]
[347059933,1735487437228,-500.0,0.00011543,2]
[347059935,1735487437237,-500.0,0.00011543,2]
[347059937,1735487437246,-564.49,0.00011543,2]
[347059939,1735487437257,-906.87,0.00011543,2]
[347059941,1735487437266,-1136.95,0.00011543,2]
[347059943,1735487437276,-500.0,0.00011543,2]
[347059945,1735487437286,-500.0,0.00011543,2]
[347059947,1735487437295,-864.65,0.00011543,2]
[347059949,1735487437305,-500.0,0.00011543,2]
[347059951,1735487437315,-3590.36,0.00011543,2]
[347059954,1735487437324,-500.0,0.00011543,2]
[347059956,1735487437334,-500.0,0.00011543,2]
[347059959,1735487437344,-1646.18,0.00011543,2]
[347059961,1735487437353,-718.34,0.00011543,2]
[347059963,1735487437363,-500.0,0.00011543,2]
[347059965,1735487437372,-500.0,0.00011543,2]
[347059967,1735487437382,-500.0,0.00011543,2]
[347059969,1735487437391,-767.94,0.00011543,2]
[347059971,1735487437400,-500.0,0.00011543,2]
[347059973,1735487437410,-678.62,0.00011543,2]
[347059975,1735487437420,-500.0,0.00011543,2]
[347059977,1735487437429,-500.0,0.00011543,2]
[347059979,1735487437439,-500.0,0.00011543,2]
[347059981,1735487437449,-1042.2,0.00011543,2]
[347059983,1735487437459,-500.0,0.00011543,2]
[347059985,1735487437468,-500.0,0.00011543,2]
[347059987,1735487437477,-508.21,0.00011543,2]
[347059989,1735487437487,-500.0,0.00011543,2]
[347059991,1735487437496,-713.04,0.00011543,2]
[347059993,1735487437506,-550.47,0.00011543,2]
[347059995,1735487437516,-13743.9,0.00011543,2]
[347059997,1735487437525,-500.0,0.00011543,2]
[347059999,1735487437535,-500.0,0.00011543,2]
[347060001,1735487437544,-500.0,0.00011543,2]
[347060003,1735487437554,-500.0,0.00011543,2]
[347060005,1735487437563,-500.0,0.00011543,2]
[347060007,1735487437573,-500.0,0.00011543,2]
[347060009,1735487437582,-500.0,0.00011543,2]
[347060011,1735487437592,-500.0,0.00011543,2]
[347060013,1735487437601,-500.0,0.00011543,2]
[347060015,1735487437611,-4021.63,0.00011543,2]
[347060017,1735487437621,-500.0,0.00011543,2]
[347060019,1735487437631,-500.0,0.00011543,2]
[347060021,1735487437640,-500.0,0.00011543,2]
[347060023,1735487437650,-515.96270277,0.00011543,2]
[347060025,1735487437659,-649.09641467,0.00011543,2]
[347060027,1735487437668,-500.0,0.00011543,2]
[347060029,1735487437678,-5287.75,0.00011543,2]
[347060031,1735487437687,-907.87,0.00011543,2]
[347060033,1735487437697,-500.0,0.00011543,2]
[347060035,1735487437706,-500.0,0.00011543,2]
[347060037,1735487437716,-595.9,0.00011543,2]
[347060039,1735487437726,-4298.53,0.00011543,2]
[347060042,1735487437736,-500.0,0.00011543,2]
[347060043,1735487437745,-500.0,0.00011543,2]
[347060045,1735487437756,-764.07,0.00011543,2]
[347060048,1735487437765,-500.0,0.00011543,2]
[347060050,1735487437775,-766.23,0.00011543,2]
[347060052,1735487437783,-3252.04,0.00011543,2]
[347060054,1735487437792,-500.0,0.00011543,2]
[347060056,1735487437802,-500.0,0.00011543,2]
[347060058,1735487437811,-150.0,0.00011543,2]
[347060059,1735487437821,-500.0,0.00011543,2]
[347060061,1735487437830,-747.61,0.00011543,2]
[347060063,1735487437843,-1519.15428303,0.00011543,2]
[347060065,1735487437853,-726.96,0.00011543,2]
[347060067,1735487437862,-500.0,0.00011543,2]
[347060069,1735487437872,-641.23,0.00011543,2]
[347060071,1735487437882,-2513.02,0.00011543,2]
[347060073,1735487437892,-570.69,0.00011543,2]
[347060075,1735487437901,-500.0,0.00011543,2]
[347060077,1735487437910,-357.22950138,0.00011543,2]
[347060079,1735487437921,-500.0,0.00011543,2]
[347060081,1735487437931,-1038.98,0.00011543,2]
[347060083,1735487437940,-7144.54,0.00011543,2]
[347060085,1735487437949,-500.0,0.00011543,2]
[347060087,1735487437959,-500.0,0.00011543,2]
[347060090,1735487437968,-500.0,0.00011543,2]
[347060092,1735487437978,-500.0,0.00011543,2]
[347060093,1735487437987,-500.0,0.00011543,2]
[347060095,1735487437996,-500.0,0.00011543,2]
[347060097,1735487438006,-500.0,0.00011543,2]
[347060099,1735487438016,-500.0,0.00011543,2]
[347060102,1735487438026,-964.3,0.00011543,2]
[347060103,1735487438036,-500.0,0.00011543,2]
[347060105,1735487438045,-500.0,0.00011543,2]
[347060108,1735487438055,-500.0,0.00011543,2]
[347060110,1735487438065,-500.0,0.00011543,2]
[347060112,1735487438074,-500.0,0.00011543,2]
[347060114,1735487438085,-1500.02,0.00011543,2]
[347060115,1735487438094,-500.0,0.00011543,2]
[347060118,1735487438104,-1056.37,0.00011543,2]
[347060121,1735487438113,-500.0,0.00011543,2]
[347060123,1735487438123,-448.79667167,0.00011543,2]
[347060125,1735487438132,-500.0,0.00011543,2]
[347060126,1735487438142,-817.79,0.00011543,2]
[347060127,1735487438151,-1322.58,0.00011543,2]
[347060128,1735487438160,-2904.21,0.00011543,2]
[347060129,1735487438169,-3096.13,0.00011543,2]
[347060130,1735487438180,-2485.17,0.00011543,2]
[347060131,1735487438189,-2462.26,0.00011543,2]
[347060132,1735487438199,-3457.02,0.00011544,2]
[347060133,1735487438208,-3804.73,0.00011544,2]
[347060135,1735487438217,-1488.28,0.00011544,2]
[347060137,1735487438226,-4692.08,0.00011544,2]
[347060139,1735487438235,-88.59569299,0.00011544,2]
[347060219,1735487438987,-628.9196118,0.00011544,2]
[347060222,1735487438999,-3309.99995,0.00011544,2]
[347060427,1735487441056,-500.0,0.0001154,2]
[347060429,1735487441066,-500.0,0.0001154,2]
[347060431,1735487441076,-500.0,0.00011541,2]
[347060433,1735487441085,-2172.37474521,0.00011544,2]
[347060435,1735487441094,-1337.1771748,0.00011544,2]
[347060437,1735487441105,-947.50945677,0.00011544,2]
[347060440,1735487441123,-2154.7,0.00011544,2]
[347060442,1735487441134,-1904.63,0.00011544,2]
[347060529,1735487441959,-500.0,0.0001154,2]
[347060531,1735487441969,-500.0,0.0001154,2]
[347060533,1735487441978,-45749.58336843,0.00011544,2]
[347060535,1735487441987,-4575.25,0.00011544,2]
[347060538,1735487441997,-2520.96,0.00011544,2]
[347060539,1735487442007,-4259.5,0.00011544,2]
[347060542,1735487442016,-28072.05,0.00011544,2]
[347060543,1735487442025,-928.54,0.00011544,2]
[347060546,1735487442036,-1498.52,0.00011544,2]
[347060548,1735487442045,-2773.04,0.00011544,2]
[347060550,1735487442054,-1801.44,0.00011544,2]
[347060552,1735487442063,-6117.82,0.00011544,2]
[347060554,1735487442072,-1524.58,0.00011544,2]
[347060555,1735487442081,-620.96,0.00011544,2]
[347060557,1735487442091,-1542.79,0.00011544,2]
[347060559,1735487442100,-1975.21,0.00011544,2]
[347060561,1735487442110,-1206.33,0.00011544,2]
[347060564,1735487442120,-5192.03,0.00011544,2]
[347060565,1735487442129,-4672.37,0.00011544,2]
[347060567,1735487442138,-1488.28,0.00011546,2]
[347060568,1735487442148,-300.0,0.000116,2]
[347060569,1735487442157,-700.0,0.000116,4]
[347060570,1735487442166,-2000.0,0.00011656,2]
[347060571,1735487442175,-200.0,0.00011656,2]
[347060572,1735487442183,-1100.0,0.000117,4]
[347060573,1735487442193,-194.74,0.000117,2]
[347060575,1735487442202,-977.37,0.000117,2]
[347060577,1735487442211,-771.25,0.000117,2]
[347060579,1735487442221,-1181.26496082,0.00011708,2]
[347060581,1735487442233,-307.01503918,0.00011708,2]
[347060583,1735487442243,-800.7959,0.00011716,2]
[347060585,1735487442252,-624.88780523,0.00011773,2]
[347060766,1735487446958,-1375.11219477,0.00011773,2]
[347060767,1735487446967,-200.0,0.00011773,2]
[347060769,1735487446977,-1488.28,0.00011798,2]
[347060771,1735487446986,-1488.28,0.00011798,2]
[347060773,1735487446995,-1488.28,0.00011799,2]
[347060775,1735487447004,-545.62139556,0.00011799,2]
[347060777,1735487447022,-689.48706448,0.00011799,2]
[347060938,1735487448695,-409.73072844,0.0001154,2]
[347061061,1735487450107,-90.26927156,0.0001154,2]
[347061063,1735487450117,-500.0,0.0001154,2]
[347061065,1735487450127,-500.0,0.0001154,2]
[347061067,1735487450137,-500.0,0.0001154,2]
[347061069,1735487450147,-500.0,0.0001154,2]
[347061071,1735487450156,-500.0,0.0001154,2]
[347061073,1735487450166,-500.0,0.00011541,2]
[347061075,1735487450176,-500.0,0.00011541,2]
[347061077,1735487450185,-1046.46,0.00011543,2]
[347061078,1735487450195,-21382.08506663,0.00011543,2]
[347061079,1735487450207,-4077.0,0.00011543,2]
[347061080,1735487450218,-493.53,0.00011543,2]
[347061081,1735487450229,-11390.8304,0.00011543,2]
[347061082,1735487450247,-1521.16383373,0.00011543,2]
[347061084,1735487450259,-11135.39069964,0.00011543,2]
[347061087,1735487450273,-253.17153996,0.00011799,2]
[347061089,1735487450283,-1400.0,0.000118,4]
[347061090,1735487450295,-500.0,0.00011814,2]
[347061092,1735487450305,-500.0,0.00011814,2]
[347061094,1735487450315,-531.78,0.00011814,2]
[347061096,1735487450325,-546.74,0.00011814,2]
[347061098,1735487450335,-921.11,0.00011814,2]
[347061100,1735487450345,-878.53,0.00011814,2]
[347061102,1735487450356,-500.0,0.00011814,2]
[347061104,1735487450366,-501.88602362,0.00011814,2]
[347061107,1735487450376,-500.0,0.00011814,2]
[347061108,1735487450386,-802.69,0.00011814,2]
[347061111,1735487450396,-500.0,0.00011814,2]
[347061113,1735487450406,-749.24,0.00011814,2]
[347061115,1735487450416,-500.0,0.00011814,2]
[347061116,1735487450426,-500.0,0.00011814,2]
[347061118,1735487450436,-500.0,0.00011814,2]
[347061120,1735487450446,-500.0,0.00011814,2]
[347061122,1735487450456,-500.0,0.00011814,2]
[347061124,1735487450466,-500.0,0.00011814,2]
[347061126,1735487450476,-850.69,0.00011814,2]
[347061128,1735487450486,-860.26,0.00011814,2]
[347061130,1735487450496,-500.0,0.00011814,2]
[347061132,1735487450506,-500.0,0.00011814,2]
[347061134,1735487450516,-992.48,0.00011814,2]
[347061136,1735487450527,-671.53,0.00011814,2]
[347061138,1735487450537,-500.0,0.00011814,2]
[347061140,1735487450547,-500.0,0.00011814,2]
[347061142,1735487450558,-2127.94,0.00011814,2]
[347061144,1735487450568,-500.0,0.00011814,2]
[347061146,1735487450578,-885.04,0.00011814,2]
[347061149,1735487450588,-500.0,0.00011814,2]
[347061150,1735487450598,-6075.54,0.00011814,2]
[347061152,1735487450608,-500.0,0.00011814,2]
[347061154,1735487450618,-547.8,0.00011814,2]
[347061156,1735487450628,-482.43224522,0.00011814,2]
[347061158,1735487450638,-1101.51,0.00011814,2]
[347061160,1735487450647,-3377.45,0.00011814,2]
[347061162,1735487450657,-500.0,0.00011814,2]
[347061164,1735487450666,-500.0,0.00011814,2]
[347061166,1735487450676,-500.0,0.00011814,2]
[347061168,1735487450685,-500.0,0.00011814,2]
[347061170,1735487450695,-5847.01,0.00011814,2]
[347061172,1735487450704,-500.0,0.00011814,2]
[347061174,1735487450714,-500.0,0.00011814,2]
[347061176,1735487450724,-12618.2,0.00011814,2]
[347061178,1735487450733,-500.0,0.00011814,2]
[347061180,1735487450743,-500.0,0.00011814,2]
[347061183,1735487450752,-500.0,0.00011814,2]
[347061185,1735487450764,-500.0,0.00011814,2]
[347061187,1735487450773,-500.0,0.00011814,2]
[347061189,1735487450782,-500.0,0.00011814,2]
[347061191,1735487450792,-500.0,0.00011814,2]
[347061193,1735487450801,-500.0,0.00011814,2]
[347061194,1735487450811,-5627.86,0.00011814,2]
[347061196,1735487450821,-273.68701454,0.00011814,2]
[347061199,1735487450831,-500.0,0.00011814,2]
[347061201,1735487450841,-282.50786716,0.00011814,2]
[347061203,1735487450857,-899.999999,0.00011814,2]
[347061432,1735487484957,3672.11,0.00010996,2]
[347061433,1735487499639,171.09,0.00010137,2]
[347061434,1735487550772,153.65,0.000179,31]
[347061435,1735487550819,153.65,0.000179,31]
[347061436,1735487550918,153.65,0.000179,31]
[347061437,1735487551027,153.65,0.000179,31]
[347061438,1735487551079,153.65,0.000179,31]
[347061439,1735487551112,153.65,0.000179,31]
[347061440,1735487551181,153.65,0.000179,31]
[347061441,1735487559439,601.01346558,0.00010876,2]
[347061442,1735487559464,1398.98653442,0.00010876,2]
[347061443,1735487590523,500.0,0.00024739,120]
[347061444,1735487591046,435.64,9.021e-05,2]
[347061446,1735487676611,158.81,8.729e-05,2]
[347061447,1735487676815,158.81,0.00010911,2]
[347061449,1735487694330,1000.0,0.00010911,2]
[347061450,1735487784550,500.0,0.00024737,120]
[347061451,1735487806942,250.0,0.00010914,2]
[347061452,1735487958611,250.0,0.00010839,2]
[347061454,1735488031358,150.0,0.00017144,120]
[347061455,1735488155085,153.67,0.000179,31]
[347061456,1735488155139,153.67,0.000179,31]
[347061457,1735488155203,153.67,0.000179,31]
[347061458,1735488155321,153.67,0.000179,31]
[347061459,1735488155356,153.67,0.000179,31]
[347061460,1735488155391,153.67,0.000179,31]
[347061461,1735488155442,153.67,0.000179,31]
[347061462,1735488198990,536.12,0.000108,2]
[347061463,1735488232531,251.76,0.00010799,2]
[347061464,1735488319540,250.0,0.00010749,2]
[347061465,1735488376203,5309.87346558,0.0001075,2]
[347061466,1735488376233,4690.12653442,0.0001075,2]
[347061468,1735488432798,167.65,0.00010137,2]
[347061469,1735488460260,413.85,8.889e-05,2]
[347061471,1735488586252,1000.0,0.00010687,2]
[347061472,1735488631189,350.37346558,0.00010876,2]
[347061473,1735488631212,1649.62653442,0.00010876,2]
[347061479,1735488631755,-413.85,0.00011153,2]
[347061480,1735488631765,-2500.0,0.0001134,2]
[347061481,1735488631774,-300.0,0.00011438,2]
[347061482,1735488631784,-42913.84780969,0.00011439,2]
[347061483,1735488631812,-5520.0000003,0.00011439,2]
[347061484,1735488631861,-3221.218,0.00011439,2]
[347061485,1735488631968,-1137.5364,0.00011439,2]
[347061486,1735488631979,-4721.291076,0.00011439,2]
[347061487,1735488632069,-5646.58959978,0.00011439,2]
[347061489,1735488632081,-765.05354712,0.00011439,2]
[347061491,1735488632092,-372.9696363,0.00011439,2]
[347061495,1735488632125,-1749.05043266,0.00011439,2]
[347061811,1735488638033,-3983.1483328,0.00011439,2]
[347061813,1735488638045,-3383.45968,0.00011439,2]
[347061817,1735488638070,-500.72386877,0.00011439,2]
[347061821,1735488638096,-2984.19087952,0.00011439,2]
[347061824,1735488638122,-74577.71963706,0.00011439,2]
[347061826,1735488638131,-6235.1897,0.00011439,2]
[347061828,1735488638140,-12501.1212,0.00011439,2]
[347061830,1735488638149,-5000.0,0.00011439,2]
[347061832,1735488638158,-4969.52929162,0.00011439,2]
[347061834,1735488638169,-9739.2,0.00011439,2]
[347061975,1735488639723,-35291.27070838,0.00011439,2]
[347061977,1735488639732,-974.46,0.00011439,2]
[347061979,1735488639742,-5983.38,0.00011439,2]
[347061981,1735488639751,-1288.4,0.00011439,2]
[347061983,1735488639760,-21191.26,0.00011439,2]
[347061985,1735488639769,-5063.29,0.00011439,2]
[347061987,1735488639779,-4516.96,0.00011439,2]
[347061989,1735488639788,-3228.66,0.00011439,2]
[347061991,1735488639797,-8137.93,0.00011439,2]
[347061993,1735488639807,-871.75,0.00011439,2]
[347061995,1735488639816,-1021.23,0.00011439,2]
[347061997,1735488639825,-2178.04,0.00011439,2]
[347061999,1735488639835,-1830.7,0.00011439,2]
[347062001,1735488639844,-2481.77,0.00011439,2]
[347062002,1735488639853,-885.96,0.00011439,2]
[347062004,1735488639863,-22012.6605,0.0001144,2]
[347062007,1735488639872,-495.7267,0.0001144,2]
[347062009,1735488639881,-1000.0,0.0001144,2]
[347062011,1735488639890,-3734.0917,0.0001144,2]
[347062013,1735488639900,-4295.5834,0.0001144,2]
[347062015,1735488639909,-342.013,0.0001149,2]
[347062016,1735488639919,-250.0,0.000115,2]
[347062018,1735488639928,-250.0,0.000115,2]
[347062020,1735488639936,-250.0,0.000115,2]
[347062022,1735488639945,-250.0,0.000115,2]
[347062024,1735488639954,-250.0,0.000115,2]
[347062027,1735488639964,-250.0,0.000115,2]
[347062028,1735488639976,-250.0,0.000115,2]
[347062030,1735488639985,-250.0,0.000115,2]
[347062032,1735488639995,-250.0,0.000115,2]
[347062034,1735488640004,-250.0,0.000115,2]
[347062036,1735488640013,-250.0,0.000115,2]
[347062038,1735488640022,-250.0,0.000115,2]
[347062040,1735488640032,-250.0,0.000115,2]
[347062042,1735488640042,-250.0,0.000115,2]
[347062044,1735488640051,-250.0,0.000115,2]
[347062046,1735488640060,-250.0,0.000115,2]
[347062048,1735488640069,-250.0,0.000115,2]
[347062050,1735488640078,-250.0,0.000115,2]
[347062052,1735488640087,-250.0,0.000115,2]
[347062054,1735488640096,-250.0,0.000115,2]
[347062056,1735488640105,-250.0,0.000115,2]
[347062058,1735488640114,-250.0,0.000115,2]
[347062060,1735488640123,-250.0,0.000115,2]
[347062062,1735488640132,-250.0,0.000115,2]
[347062064,1735488640141,-250.0,0.000115,2]
[347062066,1735488640151,-250.0,0.000115,2]
[347062068,1735488640160,-250.0,0.000115,2]
[347062070,1735488640169,-250.0,0.000115,2]
[347062092,1735488640453,-250.0,0.000115,2]
[347062094,1735488640464,-250.0,0.000115,2]
[347062096,1735488640474,-250.0,0.000115,2]
[347062098,1735488640483,-250.0,0.000115,2]
[347062100,1735488640493,-250.0,0.000115,2]
[347062102,1735488640503,-250.0,0.000115,2]
[347062104,1735488640514,-250.0,0.000115,2]
[347062106,1735488640524,-250.0,0.000115,2]
[347062108,1735488640533,-250.0,0.000115,2]
[347062110,1735488640542,-250.0,0.000115,2]
[347062112,1735488640551,-250.0,0.000115,2]
[347062114,1735488640560,-812.0,0.00011507,2]
[347062116,1735488640569,-408.76398709,0.00011534,2]